Posting Date,Expenditure Area,Supplier,Reason for Expense ,Line Net Amount,Expense Type
20-Jan-20,Culture & Environment Services,A1 Pressure Washers Ltd,Hose for Jet wash - PLAY AREA INSPECTOR, 14.22 ,Equipment / Furniture / Materials
24-Jan-20,Culture & Environment Services,Acrokool Ltd,Replacement tap for water machine, 55.50 ,Equipment / Furniture / Materials
14-Jan-20,Culture & Environment Services,Amazon.Co.Uk,Table tennis posts/nets, 35.82 ,Equipment / Furniture / Materials
20-Jan-20,Culture & Environment Services,Amazon.Co.Uk,Shelf unit for Box office admin office, 24.99 ,Equipment / Furniture / Materials
01-Jan-20,Culture & Environment Services,Amznmktplace,Purchase of 4 Way Extension Cables, 37.77 ,Equipment / Furniture / Materials
06-Jan-20,Culture & Environment Services,Amznmktplace,Hi-viz sweatshirt, 17.18 ,Clothing / Uniform & Laundry
06-Jan-20,Culture & Environment Services,Amznmktplace,Purchase of breathalysing tubes., 24.97 ,Miscellaneous Expenses
06-Jan-20,Culture & Environment Services,Amznmktplace,Stationery, 3.96 ,Stationery
08-Jan-20,Culture & Environment Services,Amznmktplace,USB charge cables, 16.63 ,Computer Consumables and other Minor IT costs
10-Jan-20,Culture & Environment Services,Amznmktplace,5x car charger adapters, 18.29 ,Direct Transport Costs
10-Jan-20,Culture & Environment Services,Amznmktplace,Coat hooks for boxes, 7.32 ,Equipment / Furniture / Materials
13-Jan-20,Culture & Environment Services,Amznmktplace,cups, 10.82 ,Equipment / Furniture / Materials
15-Jan-20,Culture & Environment Services,Amznmktplace,Squash racquets, 37.46 ,Equipment / Furniture / Materials
16-Jan-20,Culture & Environment Services,Amznmktplace,Frames for kitchen, 25.22 ,Materials and Supplies - Miscellaneous
16-Jan-20,Culture & Environment Services,Amznmktplace,Replacement hand counters, 18.72 ,Equipment / Furniture / Materials
16-Jan-20,Culture & Environment Services,Amznmktplace,Visitor name tag holders, 8.81 ,Equipment / Furniture / Materials
21-Jan-20,Culture & Environment Services,Amznmktplace,Parking permit holders, 11.60 ,Direct Transport Costs
23-Jan-20,Culture & Environment Services,Amznmktplace,Milk Jiggers for Bearers room, 10.17 ,Equipment / Furniture / Materials
23-Jan-20,Culture & Environment Services,Amznmktplace,Window demist pad for burial van, 3.32 ,Equipment / Furniture / Materials
27-Jan-20,Culture & Environment Services,Amznmktplace,Keys fobs/rings, 1.87 ,Equipment / Furniture / Materials
28-Jan-20,Culture & Environment Services,Amznmktplace,Key cabinet, 8.50 ,Equipment / Furniture / Materials
17-Jan-20,Culture & Environment Services,Amznmktplace Amazon.Co.Uk,stationary, 15.31 ,Stationery
20-Jan-20,Culture & Environment Services,Amznmktplace Amazon.Co.Uk,stationary, 14.57 ,Stationery
10-Jan-20,Culture & Environment Services,Argos Ipswich Carr Street,10 socket power charger for new scanners - Peter Ling, 21.66 ,Equipment / Furniture / Materials
14-Jan-20,Culture & Environment Services,Argos Ipswich Carr Street,10 socket charger for scanners - Peter Ling, 21.82 ,Equipment / Furniture / Materials
27-Jan-20,Culture & Environment Services,Argos Ltd,Batteries for HEARS alarms, 25.83 ,Equipment / Furniture / Materials
01-Jan-20,Culture & Environment Services,Argos Warren Heath,Ball-pool castle balls., 15.00 ,Equipment / Furniture / Materials
09-Jan-20,Culture & Environment Services,Argos Warren Heath,New extension lead, 11.66 ,Equipment / Furniture / Materials
09-Jan-20,Culture & Environment Services,Argos Warren Heath,USB sticks and batteries., 28.32 ,Equipment / Furniture / Materials
31-Jan-20,Culture & Environment Services,Asda Stores 4278,Milk for tea/coffee volunteer's refreshments, 1.10 ,Miscellaneous Expenses
13-Jan-20,Culture & Environment Services,Asda Superstore,Vegan Pastry, 1.85 ,Catering/Beverages
27-Jan-20,Culture & Environment Services,Asda Superstore,Gin for Bars, 50.00 ,Catering/Beverages
30-Jan-20,Culture & Environment Services,Asda Superstore,"Gin for Regent, Vegan Nuggets", 66.67 ,Catering/Beverages
30-Jan-20,Culture & Environment Services,Asda Superstore,"Gin for Regent, Vegan Nuggets", 4.00 ,Catering/Beverages
16-Jan-20,Culture & Environment Services,B & M Retail,Towels and washing basket for admin office kitchen, 26.69 ,Equipment / Furniture / Materials
22-Jan-20,Culture & Environment Services,B & M Retail,Regent Back stage, 4.16 ,Equipment / Furniture / Materials
31-Jan-20,Culture & Environment Services,B & M Retail,Roller Sleeves for Back stage, 11.96 ,Equipment / Furniture / Materials
07-Jan-20,Culture & Environment Services,B & Q 1315,Wood for signage - PLAY AREA INSPECTOR, 11.67 ,Equipment / Furniture / Materials
30-Jan-20,Culture & Environment Services,B & Q 1315,Extra strong glue and tape, 14.11 ,Equipment / Furniture / Materials
17-Jan-20,Culture & Environment Services,B&m Retail Ltd,two door mats, 6.65 ,Equipment / Furniture / Materials
07-Jan-20,Culture & Environment Services,B&q Direct,Paint and batteries, 21.07 ,Equipment / Furniture / Materials
24-Jan-20,Culture & Environment Services,B&q Direct,"Chain, padlocks, DIY eqp.", 44.34 ,Equipment / Furniture / Materials
09-Jan-20,Culture & Environment Services,Bag Agg Ltd,Type 1 - GILES CIRCUS - Landscape Team, 15.75 ,Miscellaneous Stock  - Purchases
20-Jan-20,Culture & Environment Services,Bag Agg Ltd,Type 1 - MORLAND ROAD - Landscape Team, 37.50 ,Miscellaneous Stock  - Purchases
16-Jan-20,Culture & Environment Services,Bolton Stores,Consumables for meeting room in CCP, 8.48 ,Equipment / Furniture / Materials
23-Jan-20,Culture & Environment Services,Boots 1833,batteries and vaseline, 5.82 ,Equipment / Furniture / Materials
08-Jan-20,Culture & Environment Services,Britishbins,Litter bins, 224.48 ,Equipment / Furniture / Materials
03-Jan-20,Culture & Environment Services,Buildbase - Ipswich,timber, 955.04 ,Materials and Supplies - Miscellaneous
16-Jan-20,Culture & Environment Services,Bunzl,cleaning supplies Old Foundry Road Toilets, 21.03 ,Cleaning Supplies
23-Jan-20,Culture & Environment Services,Bunzl,Assorted Cleaning supplies, 34.47 ,Cleaning Supplies
23-Jan-20,Culture & Environment Services,Bunzl,Cleaning supplies Old foundry Road, 23.14 ,Cleaning Supplies
23-Jan-20,Culture & Environment Services,Clintons 1208,cards, 7.50 ,Cleaning Supplies
24-Jan-20,Culture & Environment Services,Cobblers And Keys Ltd,Keys Cut - CHRISTCHURCH HUB, 8.75 ,Materials and Supplies - Miscellaneous
31-Jan-20,Culture & Environment Services,Dale Sauna Ltd,pool chemicals and water testing tablets, 286.90 ,Cleaning Supplies
13-Jan-20,Culture & Environment Services,Directsoccercouk,Junior Football Bibs, 24.97 ,Equipment / Furniture / Materials
20-Jan-20,Culture & Environment Services,Dunelm,Blind for office, 20.00 ,Equipment / Furniture / Materials
06-Jan-20,Culture & Environment Services,Dvla Vehicle Tax,Vehicle tax for AP55 OUF, 142.50 ,Parks Vehicle Costs
06-Jan-20,Culture & Environment Services,Dvla Vehicle Tax,Vehicle Tax for AP55 RBZ, 262.50 ,Direct Transport Costs
06-Jan-20,Culture & Environment Services,Dvla Vehicle Tax,Vehicle Tax for AX63 ENN, 262.50 ,Parks Vehicle Costs
06-Jan-20,Culture & Environment Services,Dvla Vehicle Tax,Vehicle Tax for AY09 XJN, 722.50 ,Direct Transport Costs
06-Jan-20,Culture & Environment Services,Dvla Vehicle Tax,Vehicle Tax for CK67 TSO, 617.50 ,Direct Transport Costs
06-Jan-20,Culture & Environment Services,Dvla Vehicle Tax,Vehicle Tax for GD67 UPY, 167.50 ,Direct Transport Costs
06-Jan-20,Culture & Environment Services,Dvla Vehicle Tax,Vehicle Tax for GD67 UPZ, 167.50 ,Direct Transport Costs
23-Jan-20,Culture & Environment Services,Dvla Vehicle Tax,Vehicle tax for AV63 XGT, 262.50 ,Direct Transport Costs
15-Jan-20,Culture & Environment Services,East Anglian Beari,V Belts for constant temp circuit, 78.78 ,Equipment / Furniture / Materials
28-Jan-20,Culture & Environment Services,East Anglian Beari,V Belts - condenser pump, 75.20 ,Equipment / Furniture / Materials
16-Jan-20,Culture & Environment Services,Eastern Hose & Hydraul,Hose, 106.05 ,Equipment - Repairs
08-Jan-20,Culture & Environment Services,Firstaid4less.Co.Uk,First Aid Supplies, 68.95 ,Cleaning Supplies
28-Jan-20,Culture & Environment Services,Firstaid4less.Co.Uk,"First aid supplies - bandages, dressings and eye wash.", 61.45 ,Materials and Supplies - Miscellaneous
20-Jan-20,Culture & Environment Services,Green Magic Co,3 x leaflet carousels, 578.97 ,Equipment / Furniture / Materials
06-Jan-20,Culture & Environment Services,Halfords 0883,Padlock for storage of CCTV equipment, 10.00 ,Equipment / Furniture / Materials
06-Jan-20,Culture & Environment Services,Halfords 0883,Screenwash, 8.75 ,Direct Transport Costs
06-Jan-20,Culture & Environment Services,Hg Gladwell & Sons,Duck Food - HOLYWELLS HUB, 27.07 ,Materials and Supplies - Miscellaneous
06-Jan-20,Culture & Environment Services,Hg Gladwell & Sons,Duck Food - HOLYWELLS HUB, 27.06 ,Materials and Supplies - Miscellaneous
03-Jan-20,Culture & Environment Services,Honey Brothers Ltd,Chainsaw Boots, 265.00 ,Clothing / Uniform & Laundry
13-Jan-20,Culture & Environment Services,Honey Brothers Ltd,"Chainsaw Gloves, Sirius Loop", 48.14 ,Clothing / Uniform & Laundry
07-Jan-20,Culture & Environment Services,Horticultural Sppls Ltd,Groundcover - WOODHOUSE SQUARE, 87.15 ,Miscellaneous Stock  - Purchases
15-Jan-20,Culture & Environment Services,Horticultural Sppls Ltd,Groundcover Pegs - WOODHOUSE SQUARE, 20.90 ,Miscellaneous Stock  - Purchases
31-Jan-20,Culture & Environment Services,Illustrator,software update to PC, 238.42 ,Computer Software - Maintenance
27-Jan-20,Culture & Environment Services,Indespension,Pin for Trailer - LANDSCAPE TEAM, 12.50 ,Miscellaneous Stock  - Purchases
22-Jan-20,Culture & Environment Services,Ipswich Tourist In,Radar keys, 8.75 ,Equipment / Furniture / Materials
22-Jan-20,Culture & Environment Services,J P Lennard Ltd,shower mat, 273.44 ,Cleaning Supplies
07-Jan-20,Culture & Environment Services,Jewson Ltd,Dense Concrete Block - ROUND POND - Christchurch Hub, 45.67 ,Materials and Supplies - Miscellaneous
07-Jan-20,Culture & Environment Services,Johnsons,Suit Repair, 6.67 ,Clothing / Uniform & Laundry
28-Jan-20,Culture & Environment Services,Kings,Spare keys for gate padlock, 25.00 ,Fixtures & Fittings
15-Jan-20,Culture & Environment Services,Leisure Controls I,hair dryers, 351.00 ,Equipment / Furniture / Materials
31-Jan-20,Culture & Environment Services,Leisure Repair Limited,water softener for steam room, 955.00 ,Equipment / Furniture / Materials
15-Jan-20,Culture & Environment Services,Leisureteq,steam room door hinges, 480.00 ,Equipment / Furniture / Materials
20-Jan-20,Culture & Environment Services,Live 4 Soccer,AWA Goals, 859.12 ,Equipment / Furniture / Materials
31-Jan-20,Culture & Environment Services,Lockshopwarehouse,Padlocks for All Weather Area & Tennis Courts, 33.00 ,Equipment / Furniture / Materials
08-Jan-20,Culture & Environment Services,Lumberjacks,Sleepers and staples for woodland repairs - Ranger Team, 109.32 ,Development & Maintenance of Natural Areas
24-Jan-20,Culture & Environment Services,M W Ashton,gas cannisters for solder iron, 5.00 ,Equipment / Furniture / Materials
07-Jan-20,Culture & Environment Services,Machine Mart Ltd,3 x Padlocks for removable bollards on Lloyds Avenue, 61.97 ,Miscellaneous Expenses
09-Jan-20,Culture & Environment Services,Machine Mart Ltd,Tie Straps for Planters - GILES CIRCUS, 14.99 ,Miscellaneous Stock  - Purchases
16-Jan-20,Culture & Environment Services,Machine Mart Ltd,plastic funnels for transferring liquids, 15.27 ,Equipment / Furniture / Materials
23-Jan-20,Culture & Environment Services,Machine Mart Ltd,2 x additional padlocks for bollards on Lloyds Avenue, 45.98 ,Miscellaneous Expenses
23-Jan-20,Culture & Environment Services,Machine Mart Ltd,Airline for Compressor - PLAY AREA INSPECTOR, 3.98 ,Equipment / Furniture / Materials
23-Jan-20,Culture & Environment Services,Machine Mart Ltd,Airline for Compressor - PLAY AREA INSPECTOR, 16.99 ,Equipment / Furniture / Materials
06-Jan-20,Culture & Environment Services,N/A,Refund from Anglian Water,-271.92 ,Miscellaneous Stock  - Purchases
06-Jan-20,Culture & Environment Services,N/A,Refund from Anglian Water,-833.33 ,Miscellaneous Stock  - Purchases
07-Jan-20,Culture & Environment Services,Ncp Pcn Payment,Parking Charge Notice No. ZP27143031, 50.00 ,Transport Costs - Miscellaneous
15-Jan-20,Culture & Environment Services,Nph Group Ipswich,CAT Recalibrated for Chantry Park, 80.52 ,Equipment / Furniture / Materials
15-Jan-20,Culture & Environment Services,P De Jager & Sons Ltd,Various Plants & Flowers - CHRISTCHURCH PARK, 190.05 ,Materials and Supplies - Miscellaneous
08-Jan-20,Culture & Environment Services,P Tuckwell Ltd,4xChisel 4 breaker - PLAY AREA REPAIRS - Play area inspector, 203.45 ,Equipment / Furniture / Materials
24-Jan-20,Culture & Environment Services,Panther Security,Intruder Alarm Servicing, 91.00 ,Security Services
23-Jan-20,Culture & Environment Services,Parts For Treadmill,treadmill parts - joystick., 22.19 ,Equipment / Furniture / Materials
09-Jan-20,Culture & Environment Services,Paypal,3 x PPE work trousers for Wildlife Ranger Team, 56.25 ,Clothing / Uniform & Laundry
07-Jan-20,Culture & Environment Services,Pegasus Industrial,Rail Joiners, 12.24 ,Materials and Supplies - Miscellaneous
31-Jan-20,Culture & Environment Services,Post Office Counter,Scanner returned, 9.12 ,Equipment / Furniture / Materials
14-Jan-20,Culture & Environment Services,Poundland Ltd 1344,Pens for fire training - Simon Parr, 9.17 ,Equipment / Furniture / Materials
07-Jan-20,Culture & Environment Services,Ram-Mount.Co.Uk,3 tablet mounts, 148.24 ,Direct Transport Costs
31-Jan-20,Culture & Environment Services,Ridgeons Atc Ipswich,50m Tape measure, 39.33 ,Miscellaneous Stock  - Purchases
24-Jan-20,Culture & Environment Services,Rs Components,wd40 for the market, 7.20 ,Premises Costs - Miscellaneous
29-Jan-20,Culture & Environment Services,Ryman,Diary, 8.32 ,Stationery
08-Jan-20,Culture & Environment Services,Sainsburys S/mkt,Sundries for Waste Services, 5.58 ,Materials and Supplies - Miscellaneous
13-Jan-20,Culture & Environment Services,Sainsburys S/mkt,Cleaning Products - CHRISTCHURCH HUB, 14.12 ,Materials and Supplies - Miscellaneous
17-Jan-20,Culture & Environment Services,Sainsburys S/mkt,Sundries for Waste Services, 4.00 ,Materials and Supplies - Miscellaneous
21-Jan-20,Culture & Environment Services,Sainsburys S/mkt,Sundries for Waste Services, 4.71 ,Materials and Supplies - Miscellaneous
13-Jan-20,Culture & Environment Services,Sainsburys S/mkts,Sundries for Waste Services, 1.83 ,Materials and Supplies - Miscellaneous
21-Jan-20,Culture & Environment Services,Sainsburys S/mkts,Halal food for Derivco conference 51234, 1.67 ,Catering/Beverages
24-Jan-20,Culture & Environment Services,Sainsburys S/mkts,Sundries for Waste Services, 1.83 ,Materials and Supplies - Miscellaneous
30-Jan-20,Culture & Environment Services,Sainsburys S/mkts,Sundries for Waste Services, 8.96 ,Materials and Supplies - Miscellaneous
06-Jan-20,Culture & Environment Services,Screens-R-Us-Limited,Replacement screen for AV58 PMO, 168.00 ,Direct Transport Costs
15-Jan-20,Culture & Environment Services,Screens-R-Us-Limited,Chip repair for SN68 UHF Hired Vehicle, 48.00 ,Direct Transport Costs
28-Jan-20,Culture & Environment Services,Screens-R-Us-Limited,replacement WS AV13 VBD F6571, 180.00 ,Direct Transport Costs
01-Jan-20,Culture & Environment Services,Screwfix Dir. Ltd,Replacement drill and battery for the Play Area Inspector, 183.32 ,Equipment / Furniture / Materials
10-Jan-20,Culture & Environment Services,Screwfix Dir. Ltd,"Mixed bolts, nuts, washers kit - Landscape Team", 24.99 ,Miscellaneous Stock  - Purchases
13-Jan-20,Culture & Environment Services,Screwfix Dir. Ltd,Drill Bits - Landscape Team, 29.14 ,Miscellaneous Stock  - Purchases
20-Jan-20,Culture & Environment Services,Screwfix Dir. Ltd,Various Screws - HOLYWELLS PARK - Landscape Team, 2.99 ,Miscellaneous Stock  - Purchases
20-Jan-20,Culture & Environment Services,Screwfix Dir. Ltd,x2 Handsaw - GUSFORD SCHOOL - Chantry Hub, 17.48 ,Materials and Supplies - Miscellaneous
24-Jan-20,Culture & Environment Services,Screwfix Dir. Ltd,Adjustable Wrench - DUMBARTON REC - Landscape Team, 12.90 ,Miscellaneous Stock  - Purchases
07-Jan-20,Culture & Environment Services,Screwfix Direct,drain lifters and repair tools, 83.68 ,Equipment / Furniture / Materials
16-Jan-20,Culture & Environment Services,Screwfix Direct,Cordless grinder for flail mower, 140.80 ,Equipment / Furniture / Materials
21-Jan-20,Culture & Environment Services,Sportsdirect 366,Safety boots, 27.49 ,Equipment / Furniture / Materials
06-Jan-20,Culture & Environment Services,Sproughton Garden Machine,service and repair mower and power barrow, 244.97 ,Equipment / Furniture / Materials
06-Jan-20,Culture & Environment Services,St John Ambulance,First Aid as per Shaun Whymark, 191.30 ,Miscellaneous Expenses
17-Jan-20,Culture & Environment Services,St John Ambulance,First Aid Supplies, 31.33 ,Miscellaneous Expenses
20-Jan-20,Culture & Environment Services,Staples.Co.Uk,sign holders, 18.25 ,Cleaning Supplies
10-Jan-20,Culture & Environment Services,Stringerswo,racket grips, 18.04 ,Goods for Resale - Equipment
10-Jan-20,Culture & Environment Services,Stringerswo,racket grips, 18.04 ,Goods for Resale - Equipment
10-Jan-20,Culture & Environment Services,Stringerswo,racket grips, 18.05 ,Goods for Resale - Equipment
10-Jan-20,Culture & Environment Services,Suffolk Fastener (Ipsw,Screws - MAPLE PARK - Play Area Inspector, 5.92 ,Equipment / Furniture / Materials
02-Jan-20,Culture & Environment Services,Tesco Store 2748,volunteer refreshments, 1.90 ,Miscellaneous Expenses
16-Jan-20,Culture & Environment Services,Tesco Store 2748,Sundries for Waste Services, 8.83 ,Materials and Supplies - Miscellaneous
10-Jan-20,Culture & Environment Services,Tesco Store 3240,Lemons, 2.50 ,Catering/Beverages
14-Jan-20,Culture & Environment Services,Tesco Store 3240,Food for derivco 51234, 156.41 ,Catering/Beverages
14-Jan-20,Culture & Environment Services,Tesco Store 3240,Food for derivco 51234, 24.17 ,Catering/Beverages
17-Jan-20,Culture & Environment Services,Tesco Store 3240,Gin and Lemonade, 82.92 ,Catering/Beverages
17-Jan-20,Culture & Environment Services,Tesco Store 3240,Gin and Lemonade, 4.50 ,Catering/Beverages
21-Jan-20,Culture & Environment Services,Tesco Store 3240,Food for Conference 51234, 58.27 ,Catering/Beverages
30-Jan-20,Culture & Environment Services,Tesco Store 3240,food for conference 51243 & lemons for bars, 27.04 ,Catering/Beverages
30-Jan-20,Culture & Environment Services,Tesco Store 3240,food for conference 51243 & lemons for bars, 5.00 ,Catering/Beverages
13-Jan-20,Culture & Environment Services,The Post Office,SIA Licence, 210.00 ,Licences & Other Fees
07-Jan-20,Culture & Environment Services,Timpson,Extra keys , 74.37 ,Equipment / Furniture / Materials
14-Jan-20,Culture & Environment Services,Toolstation Ltd,Safety Tape/Duck Tape, 3.74 ,Equipment / Furniture / Materials
24-Jan-20,Culture & Environment Services,Toolstation Ltd,Digital angle rule - GUSFORD SCHOOL - Chantry Hub, 14.16 ,Materials and Supplies - Miscellaneous
29-Jan-20,Culture & Environment Services,Total Racking Solutions,Shelving for cellar and ops room, 64.99 ,Equipment / Furniture / Materials
29-Jan-20,Culture & Environment Services,Total Racking Solutions,Shelving for cellar and ops room, 95.81 ,Equipment / Furniture / Materials
17-Jan-20,Culture & Environment Services,Tp Ipswich,Grit Sand - WOODHOUSE SQUARE - Landscape Team, 8.04 ,Miscellaneous Stock  - Purchases
29-Jan-20,Culture & Environment Services,Trophystore.Co.Uk Limited,Trophies for cricket league finals day., 224.03 ,Equipment / Furniture / Materials
07-Jan-20,Culture & Environment Services,Victoria Nurseries,Various Plants - CHRISTCHURCH HUB, 23.33 ,Materials and Supplies - Miscellaneous
23-Jan-20,Culture & Environment Services,Virtual College Limite,Food Hygiene L2 Courses, 36.00 ,Training/Courses Running Costs
13-Jan-20,Culture & Environment Services,Waitrose Ltd,milk for shopmobility, 0.96 ,Subsistence & Conference/Seminar / Event Expenses
15-Jan-20,Culture & Environment Services,Watercoolersdirect.Com,water filter for gym, 44.94 ,Equipment / Furniture / Materials
03-Jan-20,Culture & Environment Services,Wh Smith,FoH Diary, 6.66 ,Equipment / Furniture / Materials
09-Jan-20,Culture & Environment Services,Wickes Ipswich,Scrapers for Cleansing, 16.50 ,Materials and Supplies - Miscellaneous
10-Jan-20,Culture & Environment Services,Wickes Ipswich,Flat steel bar - GILES CIRCUS, 5.79 ,Miscellaneous Stock  - Purchases
10-Jan-20,Culture & Environment Services,Wickes Ipswich,Granular sub base - GILES CIRCUE/CATTLEMARKET, 40.00 ,Miscellaneous Stock  - Purchases
10-Jan-20,Culture & Environment Services,Wickes Ipswich,Granular sub base - GILES CIRCUS/CATTLEMARKET, 40.00 ,Miscellaneous Stock  - Purchases
13-Jan-20,Culture & Environment Services,Wickes Ipswich,Angle iron for Tree - CATTLEMARKET, 13.25 ,Miscellaneous Stock  - Purchases
30-Jan-20,Culture & Environment Services,Wickes Ipswich,"Paint for stage, B", 64.58 ,Equipment / Furniture / Materials
29-Jan-20,Culture & Environment Services,Wickes Stowmarket,Unit to put new coffee machine on, 64.17 ,Materials and Supplies - Miscellaneous
30-Jan-20,Culture & Environment Services,Wickes Stowmarket,Counter for Coffee Machine, 29.17 ,Materials and Supplies - Miscellaneous
03-Jan-20,Culture & Environment Services,Wilko Retail Limited,cleaning materials for shopmobility, 7.75 ,Cleaning Supplies
10-Jan-20,Culture & Environment Services,Wilko Retail Limited,Hard Bristle brush - CHRISTCHURCH HUB, 0.83 ,Materials and Supplies - Miscellaneous
10-Jan-20,Culture & Environment Services,Wilko Retail Limited,Screw Set - GILES CIRCUS - Landscape Team, 2.50 ,Miscellaneous Stock  - Purchases
13-Jan-20,Culture & Environment Services,Wilko Retail Limited,Screws - Landscape Team, 0.67 ,Miscellaneous Stock  - Purchases
13-Jan-20,Culture & Environment Services,Wilko Retail Limited,Tea Spoons for Education Room - CHRISTCHURCH HUB, 1.00 ,Materials and Supplies - Miscellaneous
23-Jan-20,Culture & Environment Services,Wilko Retail Limited,Comando Strips, 7.50 ,Materials and Supplies - Miscellaneous
24-Jan-20,Culture & Environment Services,Wilko Retail Limited,Replacement tape measure., 4.58 ,Equipment / Furniture / Materials
03-Jan-20,Culture & Environment Services,Wilko.Com,toilet brushes for corn exchange / town hall, 18.33 ,Cleaning Supplies
07-Jan-20,Culture & Environment Services,Www.Banneruk.Com,Wall Planner, 6.45 ,Stationery
07-Jan-20,Culture & Environment Services,Www.Banneruk.Com,wall planners & diaries, 13.54 ,Stationery
31-Jan-20,Culture & Environment Services,Www.Banneruk.Com,Key Splits for HEARS customer keys, 8.18 ,Stationery
21-Jan-20,Culture & Environment Services,Www.Bricklanebikesshop,Indoor cycle foot straps, 65.00 ,Equipment / Furniture / Materials
13-Jan-20,Culture & Environment Services,Www.Eurekadirect.Co.Uk,Gloves for ESC, 166.50 ,Materials and Supplies - Miscellaneous
22-Jan-20,Culture & Environment Services,Www.Heatoncatering,Optic Brackets, 40.65 ,Equipment / Furniture / Materials
23-Jan-20,Culture & Environment Services,Www.Licencecheck.Co.Uk,Foreign License Check, 15.00 ,Transport Costs - Miscellaneous
03-Jan-20,Culture & Environment Services,Www.Lifesaversdirect,Books for First Aid Staff Course at the start of January, 148.33 ,Training/Courses Running Costs
07-Jan-20,Culture & Environment Services,Www.Officeteamconnect.Co,Stationery, 56.25 ,Stationery
31-Jan-20,Culture & Environment Services,Www.Sta.Co.Uk,Marion Berry Cerebal Palsy CPD training with STA, 25.00 ,Training Expenses
24-Jan-20,Culture & Environment Services,Www.Swimming.Org,PPO requalification , 56.67 ,Training Expenses
13-Jan-20,Culture & Environment Services,Www.Toolstation.Com,Replacement drawer runners - for drawers in reception, 2.43 ,Equipment / Furniture / Materials
27-Jan-20,Culture & Environment Services,Www.Ucs.Ac.Uk,Course at University of Suffolk, 45.00 ,Specific Campaigns / Projects expenditure
16-Jan-20,Culture & Environment Services,Www.Uktapes.Com,reflective barrier tape, 98.00 ,Materials and Supplies - Miscellaneous
13-Jan-20,Culture & Environment Services,Www.Zoro.Co.Uk,"Chainsaw Gloves, Sirus Loop", 82.23 ,Clothing / Uniform & Laundry
16-Jan-20,Culture & Environment Services,Wwwtudorenvironmentalcou,"plastic barrier fencing, steel pin with top hook", 80.00 ,Materials and Supplies - Miscellaneous
22-Jan-20,Development,Amazon.Co.Uk,Clear waterproof tape for site notices, 19.98 ,Stationery
24-Jan-20,Development,Babergh District C,Partnership Inspections , 100.00 ,Non Contracted_Professional Services
30-Jan-20,Development,Babergh District C,Partnership Inspections , 100.00 ,Non Contracted_Professional Services
06-Jan-20,Development,Gardening Delights,Bio Bags, 74.80 ,Cleaning Supplies
21-Jan-20,Development,Https://Www.Estore.Wlv,PF - Residential week March 20, 195.00 ,Training Expenses
09-Jan-20,Development,J P Chick & Partne,19/00837/DEX Calculations Check, 96.00 ,Non Contracted_Professional Services
20-Jan-20,Development,Paypal,Book - Slip Resistance , 60.00 ,Publications - Purchase
28-Jan-20,Development,Paypal,Restoration skills training - RS, 285.00 ,Training Expenses
15-Jan-20,Development,Psa Parts,MN - Battery Charger Lead, 12.49 ,Computer Software - Maintenance
06-Jan-20,Development,Rics Subs UK Cybs,subs smd, 539.00 ,Employee Expenses
14-Jan-20,Development,Rics Subs UK Cybs,subs SU, 539.00 ,Employee Expenses
07-Jan-20,Development,Royal Town Planning,Professional Mem. Fees , 315.00 ,Employee Expenses
07-Jan-20,Development,Royal Town Planning,Professional Mem. Fees ," 1,576.00 ",Employee Expenses
07-Jan-20,Development,Royal Town Planning,Professional Mem. Fees , 945.00 ,Employee Expenses
10-Jan-20,Development,Royal Town Planning,2020 membership subs , 63.00 ,Employee Expenses
10-Jan-20,Development,Royal Town Planning,2020 membership subs , 315.00 ,Employee Expenses
13-Jan-20,Development,Sainsburys S/mkt,milk & tea, 15.60 ,Subsistence & Conference/Seminar / Event Expenses
29-Jan-20,Development,Sainsburys S/mkts,Biscuits , 4.08 ,Materials and Supplies - Miscellaneous
24-Jan-20,Development,Short Courses,Urban Design and Conservation course, 300.00 ,Training Expenses
09-Jan-20,Development,Stamps Direct Ltd,2020 onwards date stamps, 81.37 ,Stationery
22-Jan-20,Development,"Www,eastsuffolk.Gov.Uk",Partnership Inspections , 192.00 ,Non Contracted_Professional Services
27-Jan-20,Development,"Www,eastsuffolk.Gov.Uk",Partnership Inspections , 96.00 ,Non Contracted_Professional Services
08-Jan-20,Development,Www.Banneruk.Com,Laminating Pouches (Site Notices), 72.68 ,Stationery
22-Jan-20,Development,Www.Banneruk.Com,Laminating pouches (public notices), 36.34 ,Stationery
22-Jan-20,Development,Www.Banneruk.Com,Velcro strips (for presentation boards), 4.72 ,Stationery
27-Jan-20,Development,Www.Banneruk.Com,Laminating pouches (site notices), 36.34 ,Stationery
30-Jan-20,Development,Www.Ciob.Org.Uk,2020 membership , 294.00 ,Employee Expenses
31-Jan-20,Development,Www.Labc.Uk.Com,Conference , 350.00 ,Training Expenses
14-Jan-20,Development,Www.Panelwarehouse.Com,Presentation Boards for Planning Events, 240.81 ,Materials and Supplies - Miscellaneous
17-Jan-20,Development,Www.Uk.Edensprings.Com,paper cups, 40.00 ,Materials and Supplies - Miscellaneous
24-Jan-20,Finance & Revenues,Acca,AAT Annual Membership Fee , 112.00 ,Employee Expenses
24-Jan-20,Finance & Revenues,Acca,ACCA Exam Fee, 70.00 ,Training Expenses
08-Jan-20,Finance & Revenues,Amazon.Co.Uk,HDMI Cables - Hollywells, 17.95 ,Computer Equipment - Purchase
08-Jan-20,Finance & Revenues,Amazon.Co.Uk,Logitech Meeting Cam, 722.68 ,Equipment / Furniture / Materials
30-Jan-20,Finance & Revenues,Amazon.Co.Uk,Protective lans cap for conference/webcam, 16.02 ,Computer Equipment - Purchase
30-Jan-20,Finance & Revenues,Amazon.Co.Uk,Storage bag for conference webcam/speaker, 37.46 ,Computer Equipment - Purchase
06-Jan-20,Finance & Revenues,Amznmktplace,Protective Cases for Smartphones, 5.50 ,Telecommunication Costs - Mobiles
06-Jan-20,Finance & Revenues,Amznmktplace,Protective Cases for Smartphones, 5.50 ,Telecommunication Costs - Mobiles
06-Jan-20,Finance & Revenues,Amznmktplace,Protective Cases for Smartphones, 5.50 ,Telecommunication Costs - Mobiles
15-Jan-20,Finance & Revenues,Amznmktplace,Dyno Label maker tape, 21.30 ,Equipment / Furniture / Materials
16-Jan-20,Finance & Revenues,Amznmktplace,Protective case for Smartphone, 7.07 ,Telecommunication Costs - Mobiles
16-Jan-20,Finance & Revenues,Amznmktplace,Protective case for Smartphone, 8.70 ,Telecommunication Costs - Mobiles
27-Jan-20,Finance & Revenues,Amznmktplace,Protective case for Smartphone, 8.70 ,Telecommunication Costs - Mobiles
27-Jan-20,Finance & Revenues,Amznmktplace,Protective case for Smartphone, 8.70 ,Telecommunication Costs - Mobiles
22-Jan-20,Finance & Revenues,Amznmktplace Amazon.Co.Uk,Protective cases for Smartphones, 6.83 ,Telecommunication Costs - Mobiles
22-Jan-20,Finance & Revenues,Amznmktplace Amazon.Co.Uk,Protective cases for Smartphones, 6.82 ,Telecommunication Costs - Mobiles
17-Jan-20,Finance & Revenues,Ebuyer (UK) Ltd,"22 Cases , IT Stock", 245.66 ,Equipment / Furniture / Materials
15-Jan-20,Finance & Revenues,Greater Anglia Trains,Manningtree to London Return Tickets 12 & 13/1/20 , 137.60 ,Use Of Public Transport
17-Jan-20,Finance & Revenues,Greater Anglia Trains,Ipswich to Stratford - Return Ticket 5/2/20 , 48.00 ,Use Of Public Transport
22-Jan-20,Finance & Revenues,Kaplan Financial Ltd,AAT Admin & Exam Fee, 35.00 ,Training Expenses
22-Jan-20,Finance & Revenues,Kaplan Financial Ltd,AAT Admin & Exam Fee, 46.00 ,Training Expenses
29-Jan-20,Finance & Revenues,Lucidchart.Com/Charge,Lucid Charts subscription for 5 users, 342.77 ,Computer Equipment - Purchase
30-Jan-20,Finance & Revenues,Ncs*cima Vue Exam,CIMA Exam Fee , 125.00 ,Training Expenses
15-Jan-20,Finance & Revenues,One Direct,Webcam, 159.99 ,Computer Equipment - Purchase
20-Jan-20,Finance & Revenues,One Direct,Telephony testing, 225.98 ,Computer Equipment - Purchase
17-Jan-20,Finance & Revenues,Paypal,Domain registrations, 55.96 ,Computer Software - Purchase
22-Jan-20,Finance & Revenues,Paypal,Domain renewals, 19.98 ,Web Service costs
21-Jan-20,Finance & Revenues,Require It Ltd,Replacement Screen for stock laptop, 62.40 ,Computer Equipment - Purchase
09-Jan-20,Finance & Revenues,Service Fees - Fraedom Pty Ltd,Card Usage Fees 1/12/19 to 31/1/19 and Annual Support Fee," 2,383.15 ",Computer Software - Maintenance
07-Jan-20,Finance & Revenues,Southend County,Council Tax committal summons, 735.00 ,Legal Services & Fees
27-Jan-20,Finance & Revenues,Sp * Owl Labs Uk,Conference webcam/speaker, 582.50 ,Computer Equipment - Purchase
17-Jan-20,Finance & Revenues,Trainline,Rail Tickets - Tina Williams, 59.17 ,Use Of Public Transport
17-Jan-20,Finance & Revenues,Trainline,Rail Tickets - Tina Williams, 59.17 ,Use Of Public Transport
07-Jan-20,Finance & Revenues,Www.Cimaglobal.Com,CIMA - Annual Membership Subscription, 120.00 ,Employee Expenses
23-Jan-20,Finance & Revenues,Www.Cpag.Org.Uk,HB and CTR Legislation with Supplement 2019/20 (32nd Ed.), 112.91 ,Subscriptions - Service Related
27-Jan-20,Finance & Revenues,Www.Irrv.Org.Uk,Council Tax Law and Practice 2020, 145.00 ,Subscriptions - Service Related
27-Jan-20,Finance & Revenues,Www.Irrv.Org.Uk,Rating Law and Practice 2020, 145.00 ,Subscriptions - Service Related
15-Jan-20,Finance & Revenues,Www.Kaplanfoulkslynch.,CIMA study material, 26.56 ,Training Expenses
15-Jan-20,Finance & Revenues,Www.Kaplanfoulkslynch.,CIMA study material , 45.53 ,Training Expenses
27-Jan-20,Housing & Community Services,Aging In Place,Cost of conference ticket, 394.80 ,Training Expenses
13-Jan-20,Housing & Community Services,Amazon Prime,Amazon Prime, 7.99 ,Equipment / Furniture / Materials
01-Jan-20,Housing & Community Services,Amazon.Co.Uk,H & S in Construction for Steve Hough, 52.24 ,Publications - Purchase
06-Jan-20,Housing & Community Services,Amznmktplace,Folding Trolley x 2 Book - System Thinking for Steve Fisher, 11.98 ,Materials and Supplies - Miscellaneous
06-Jan-20,Housing & Community Services,Amznmktplace,Folding Trolley x 2 Book - System Thinking for Steve Fisher, 11.98 ,Materials and Supplies - Miscellaneous
06-Jan-20,Housing & Community Services,Amznmktplace,Folding Trolley x 2 Book - System Thinking for Steve Fisher, 4.40 ,Publications - Purchase
09-Jan-20,Housing & Community Services,Amznmktplace,Floor Trowel, 13.11 ,Equipment / Furniture / Materials
09-Jan-20,Housing & Community Services,Amznmktplace,Trolley for movement of Heavy goods in stores, 64.46 ,Equipment / Furniture / Materials
10-Jan-20,Housing & Community Services,Amznmktplace,Black Tax Disc holders , 1.33 ,Equipment / Furniture / Materials
14-Jan-20,Housing & Community Services,Amznmktplace,Snapframes, 29.99 ,Stationery
16-Jan-20,Housing & Community Services,Amznmktplace,"Kettle, USB Cables, Tablet Holder for Dash, Tablet Case", 14.99 ,Equipment / Furniture / Materials
16-Jan-20,Housing & Community Services,Amznmktplace,"Kettle, USB Cables, Tablet Holder for Dash, Tablet Case", 46.16 ,Telecommunication Costs - Mobiles
21-Jan-20,Housing & Community Services,Amznmktplace,Settee & mattress storage bags, 26.35 ,Miscellaneous Expenses
29-Jan-20,Housing & Community Services,Amznmktplace,Selfie Stick, 9.99 ,Equipment / Furniture / Materials
06-Jan-20,Housing & Community Services,Booker Limited Ipswich,Milk, 7.60 ,Materials and Supplies - Miscellaneous
10-Jan-20,Housing & Community Services,Booker Limited Ipswich,Milk, 7.60 ,Materials and Supplies - Miscellaneous
16-Jan-20,Housing & Community Services,Booker Limited Ipswich,Coffee/Milk, 24.59 ,Materials and Supplies - Miscellaneous
23-Jan-20,Housing & Community Services,Booker Limited Ipswich,Milk, 7.60 ,Materials and Supplies - Miscellaneous
28-Jan-20,Housing & Community Services,Booker Limited Ipswich,Coffee/Milk, 24.59 ,Materials and Supplies - Miscellaneous
23-Jan-20,Housing & Community Services,Boots 1833,Plasters for first aid box in CSC, 4.14 ,Materials and Supplies - Miscellaneous
07-Jan-20,Housing & Community Services,Chartered Institute Of En,Noise conference attendance , 120.83 ,Training Expenses
06-Jan-20,Housing & Community Services,Copdock Kennels, dogs, 726.60 ,Services for Clients
21-Jan-20,Housing & Community Services,Currys Online,Wash Machine DF, 189.00 ,Specific Campaigns / Projects expenditure
18-Dec-19,Housing & Community Services,Eoe Coop,ELECTRIC, 12.50 ,Materials and Supplies - Miscellaneous
01-Jan-20,Housing & Community Services,Eoe Coop,ELECTRIC , 16.67 ,Materials and Supplies - Miscellaneous
01-Jan-20,Housing & Community Services,Eoe Coop,Electric, 16.67 ,Materials and Supplies - Miscellaneous
09-Jan-20,Housing & Community Services,Food Safety Direct,25x PACE notebooks, 52.99 ,Equipment / Furniture / Materials
17-Jan-20,Housing & Community Services,Greater Anglia Trains,Train ticket to Leicester, 72.40 ,Services for Clients
20-Jan-20,Housing & Community Services,Greater Anglia Trains,Train tickets to London, 429.80 ,Use Of Public Transport
21-Jan-20,Housing & Community Services,Greater Anglia Trains,Underground tickets for Firmstep Conference, 67.50 ,Use Of Public Transport
23-Jan-20,Housing & Community Services,Greater Anglia Trains, cost of rail fare to London for training, 66.00 ,Use Of Public Transport
13-Jan-20,Housing & Community Services,Iz *translation An,Translator for Gas Safety Investigation, 142.10 ,Non Contracted_Professional Services
10-Jan-20,Housing & Community Services,J2 Efax Plus Service,Monthly fee for use of secure fax system (for food parcels), 11.00 ,Miscellaneous Expenses
27-Jan-20,Housing & Community Services,Lucidchart.Com/Charge,Lucid Chart Software, 144.00 ,Computer Equipment - Purchase
23-Jan-20,Housing & Community Services,Paypal,Dog cage with waterproof bed for the waste enforcement vans, 26.62 ,Equipment / Furniture / Materials
07-Jan-20,Housing & Community Services,Possessionclaim.Go,possession claim on line, 121.00 ,Legal Services & Fees
07-Jan-20,Housing & Community Services,Possessionclaim.Go,Possession claim on line, 325.00 ,Legal Services & Fees
07-Jan-20,Housing & Community Services,Possessionclaim.Go,Possession claim on line, 325.00 ,Legal Services & Fees
07-Jan-20,Housing & Community Services,Possessionclaim.Go,Possession claim on line, 325.00 ,Legal Services & Fees
07-Jan-20,Housing & Community Services,Possessionclaim.Go,possession court on line, 325.00 ,Legal Services & Fees
07-Jan-20,Housing & Community Services,Possessionclaim.Go,Warrant of Possession, 121.00 ,Legal Services & Fees
09-Jan-20,Housing & Community Services,Possessionclaim.Go,Possession claim on line, 325.00 ,Legal Services & Fees
09-Jan-20,Housing & Community Services,Possessionclaim.Go,Possession claim on line, 325.00 ,Legal Services & Fees
09-Jan-20,Housing & Community Services,Possessionclaim.Go,Possession claim on line, 325.00 ,Legal Services & Fees
20-Jan-20,Housing & Community Services,Possessionclaim.Go,possession claim on line, 325.00 ,Legal Services & Fees
20-Jan-20,Housing & Community Services,Possessionclaim.Go,Possession claim on line, 325.00 ,Legal Services & Fees
20-Jan-20,Housing & Community Services,Possessionclaim.Go,Possession claim on line, 325.00 ,Legal Services & Fees
20-Jan-20,Housing & Community Services,Possessionclaim.Go,possession claim on line, 325.00 ,Legal Services & Fees
01-Jan-20,Housing & Community Services,Sainsburys S/mkts,"Antibac wipes, antibac spray, cleaning brush", 13.33 ,Cleaning Supplies
01-Jan-20,Housing & Community Services,Sainsburys S/mkts,Milk for staff, 0.80 ,Materials and Supplies - Miscellaneous
08-Jan-20,Housing & Community Services,Sainsburys S/mkts,Sugar/sweetner, 4.40 ,Materials and Supplies - Miscellaneous
10-Jan-20,Housing & Community Services,Sainsburys S/mkts,Milk for staff, 0.80 ,Materials and Supplies - Miscellaneous
16-Jan-20,Housing & Community Services,Sainsburys S/mkts,Milk and coffee for staff, 4.80 ,Materials and Supplies - Miscellaneous
20-Jan-20,Housing & Community Services,Sainsburys S/mkts,Milk for staff, 0.80 ,Materials and Supplies - Miscellaneous
22-Jan-20,Housing & Community Services,Sainsburys S/mkts,Decaff/Sugar - 4800. Dishwasher rinse - 4500, 5.50 ,Materials and Supplies - Miscellaneous
22-Jan-20,Housing & Community Services,Sainsburys S/mkts,Decaff/Sugar - 4800. Dishwasher rinse - 4500, 3.50 ,Equipment / Furniture / Materials
22-Jan-20,Housing & Community Services,Sainsburys S/mkts,Get Together refreshments, 6.70 ,Housing  - other Costs
27-Jan-20,Housing & Community Services,Southend County,Memorandum of convictions, 16.67 ,Non Contracted_Professional Services
28-Jan-20,Housing & Community Services,Spreaders Plastering Su,5 x replacement plastiflex rendering insert, 75.00 ,Equipment / Furniture / Materials
03-Jan-20,Housing & Community Services,Toolstation Ltd,Coving Mitre , 7.72 ,Equipment / Furniture / Materials
31-Jan-20,Housing & Community Services,Toolstation Ltd,Screwdriver set x3 hex key set x 3, 46.12 ,Equipment / Furniture / Materials
15-Jan-20,Housing & Community Services,Trainline,Train to Norwich, 28.02 ,Use Of Public Transport
16-Jan-20,Housing & Community Services,Trainline,Train ticket for CES, 110.45 ,Use Of Public Transport
16-Jan-20,Housing & Community Services,Trainline,Travel to London  training course, 99.80 ,Use Of Public Transport
20-Jan-20,Housing & Community Services,Waitrose Ltd,Milk, 1.92 ,Materials and Supplies - Miscellaneous
21-Jan-20,Housing & Community Services,Wilko.Com,Household utensils, 88.00 ,Specific Campaigns / Projects expenditure
16-Jan-20,Housing & Community Services,Www.Banneruk.Com,Stationery, 66.94 ,Stationery
13-Jan-20,Housing & Community Services,Www.Ironmongerydirect.,Lock cylinder Snapping replacement Attachments , 22.85 ,Equipment / Furniture / Materials
21-Jan-20,Housing & Community Services,Www.Klipspringer.Com,Calibration food safety probe, 84.00 ,Equipment / Furniture / Materials
24-Jan-20,People & Governance,Adobe Creative Cloud,Credit for incorrect Adobe Licence,-301.84 ,Computer Software - Maintenance
23-Jan-20,People & Governance,Amazon.Co.Uk,Encrypted USB stick as discussed with IT, 9.31 ,Equipment / Furniture / Materials
28-Jan-20,People & Governance,Amazon.Co.Uk,A2 Laminating Pouches, 48.44 ,Miscellaneous Stock  - Purchases
13-Jan-20,People & Governance,Amz*home-Ideas,Power adapter for Area Committee microphones,-20.86 ,Computer Consumables and other Minor IT costs
09-Jan-20,People & Governance,Amznmktplace,6 x Roller Banner Cases for Print Room use, 94.17 ,Miscellaneous Stock  - Purchases
09-Jan-20,People & Governance,Amznmktplace,A0 5mm Foam Boards for print room use, 88.28 ,Miscellaneous Stock  - Purchases
09-Jan-20,People & Governance,Amznmktplace,A1 5mm Foam Boards for print room use, 83.25 ,Miscellaneous Stock  - Purchases
13-Jan-20,People & Governance,Amznmktplace,port hubs for fraud office, 21.66 ,Equipment / Furniture / Materials
13-Jan-20,People & Governance,Amznmktplace,Power adapter for Area Committee microphones, 20.86 ,Computer Consumables and other Minor IT costs
16-Jan-20,People & Governance,Amznmktplace,port hubs for fraud office, 24.97 ,Equipment / Furniture / Materials
24-Jan-20,People & Governance,Amznmktplace,Carry Case for the MacBook Pro Laptop, 47.98 ,Miscellaneous Stock  - Purchases
08-Jan-20,People & Governance,Anglia Professional Dry,cleaning of work suit, 11.25 ,Clothing / Uniform & Laundry
14-Jan-20,People & Governance,Companies House,confirmation statement, 13.00 ,Legal Services & Fees
14-Jan-20,People & Governance,Companies House,confirmation statement, 13.00 ,Legal Services & Fees
14-Jan-20,People & Governance,Companies House,confirmation statement, 13.00 ,Legal Services & Fees
24-Jan-20,People & Governance,Creative Cloud Indiv,"Incorrect Adobe licence purchased, will be credited", 301.84 ,Computer Software - Maintenance
15-Jan-20,People & Governance,Facebk *3wdhuqj8j2,Facebook Advertising, 119.81 ,Advertising/Publicity
15-Jan-20,People & Governance,Facebk *3wdhuqj8j2,Facebook Advertising, 75.02 ,Advertising/Publicity
15-Jan-20,People & Governance,Facebk *3wdhuqj8j2,Facebook Advertising, 202.06 ,Advertising/Publicity
15-Jan-20,People & Governance,Facebk *3wdhuqj8j2,Facebook Advertising, 60.62 ,Advertising/Publicity
15-Jan-20,People & Governance,Facebk *3wdhuqj8j2,Facebook Advertising, 25.83 ,Advertising/Publicity
07-Jan-20,People & Governance,Facebk *4tcpara8j2,Facebook Advertising, 105.39 ,Advertising/Publicity
07-Jan-20,People & Governance,Facebk *4tcpara8j2,Facebook Advertising, 53.80 ,Advertising/Publicity
07-Jan-20,People & Governance,Facebk *4tcpara8j2,Facebook Advertising, 111.50 ,Advertising/Publicity
07-Jan-20,People & Governance,Facebk *4tcpara8j2,Facebook Advertising, 34.82 ,Advertising/Publicity
07-Jan-20,People & Governance,Greater Anglia T/o,Rail tickets for apprentices to travel on 9th January 2020, 134.00 ,Training Expenses
21-Jan-20,People & Governance,Greater Anglia T/o,Train fare  - Payroll attend training, 272.40 ,Use Of Public Transport
24-Jan-20,People & Governance,Greater Anglia Trains,Transport to CISA ISACA training, 531.80 ,Training Expenses
22-Jan-20,People & Governance,Helloprint,External print of DL Leaflets for the TIC - Tea Walks, 92.96 ,Printing Costs
28-Jan-20,People & Governance,Helloprint,Car Window Stickers, 25.45 ,Equipment / Furniture / Materials
17-Jan-20,People & Governance,Isaca,ISACA Q&A database for study, 78.26 ,Training Expenses
09-Jan-20,People & Governance,Istock.Com,Photo Credits for Design, 137.00 ,Computer Consumables and other Minor IT costs
13-Jan-20,People & Governance,Mailchimp,Email Marketing, 456.47 ,Subscriptions - Service Related
17-Jan-20,People & Governance,Regional Publications,Cemeteries ad, 250.00 ,Advertising/Publicity
15-Jan-20,People & Governance,Rs Components,Power adapter for AC microphones, 23.26 ,Computer Consumables and other Minor IT costs
17-Jan-20,People & Governance,"Sprout Social, Inc",Social media management, 750.93 ,Subscriptions - Service Related
06-Jan-20,People & Governance,Tenancy Fraud Forum,Tenancy Fraud Forum event in London, 149.00 ,Training Expenses
09-Jan-20,People & Governance,Waitrose Ltd,milk/coffee for the parlour, 4.49 ,Miscellaneous Functions & Events
21-Jan-20,People & Governance,Waitrose Ltd,biscuits and squash for the mayors parlour, 2.33 ,Miscellaneous Functions & Events
21-Jan-20,People & Governance,Waitrose Ltd,biscuits and squash for the parlour, 2.94 ,Miscellaneous Functions & Events
23-Jan-20,People & Governance,Waitrose Ltd,milk for parlour, 0.42 ,Miscellaneous Functions & Events
10-Jan-20,People & Governance,Wh Smith,raffle books x3, 9.97 ,Miscellaneous Functions & Events
06-Jan-20,People & Governance,Www.Banneruk.Com,4x PGi570PBK XL S/Housing, 81.84 ,Computer Consumables and other Minor IT costs
13-Jan-20,People & Governance,Www.Banneruk.Com,Julia Johnson S/Housing 2x PGi550PGBK 1x CLi551 C XL, 40.65 ,Computer Consumables and other Minor IT costs
14-Jan-20,People & Governance,Www.Banneruk.Com,Julia Johnson S/Housing 1x CLi 551 Yellow, 14.99 ,Computer Consumables and other Minor IT costs
29-Jan-20,People & Governance,Www.Banneruk.Com,A3 Laminating Pouches, 22.98 ,Miscellaneous Stock  - Purchases
29-Jan-20,People & Governance,Www.Banneruk.Com,Riso inks, 19.81 ,Computer Consumables and other Minor IT costs
16-Jan-20,People & Governance,Www.Labelplanet.Co.Uk,Labels for use within the print room, 90.00 ,Miscellaneous Stock  - Purchases
13-Jan-20,People & Governance,Www.Paper.Co.Uk,Paper for the print room use, 244.65 ,Miscellaneous Stock  - Purchases
22-Jan-20,People & Governance,Www.Paper.Co.Uk,Paper for the print room use, 232.95 ,Miscellaneous Stock  - Purchases
07-Jan-20,People & Governance,Www.Voucherexpress.Co.,REDACTED, 220.75 ,Specific Campaigns / Projects expenditure
